[Event "ChessKid Cup Div-III 2023"]
[Site "Online"]
[Date "2023.05.22"]
[Round "2.1"]
[White "Gledura, Benjamin"]
[Black "Antipov, Mikhail Al."]
[Result "1/2-1/2"]
[ECO "C45"]
[WhiteElo "2644"]
[BlackElo "2588"]
[Annotator "TA"]
[PlyCount "108"]
[EventDate "2023.05.21"]
[EventType "k.o."]
[EventCountry "NET"]
[SourceTitle "playchess.com"]
[Source "ChessBase"]
[SourceQuality "1"]
[TimeControl "900+3"]

{[%evp 17,108,0,0,0,20,10,27,25,28,-33,-10,-11,2,5,3,3,3,4,0,7,22,13,25,23,27,20,28,33,35,35,33,35,31,27,28,8,15,15,17,14,14,0,0,0,0,0,2,3,4,4,12,0,16,31,15,25,86,52,154,90,169,8,8,8,8,8,8,8,8,8,8,0,8,8,8,8,8,8,8,8,8,8,8,8,8,8,8,8,8,8,8,8,8]} 1. e4 {[%emt 0:00:06]} e5 {[%emt 0:00:05]} 2. Nf3 {[%emt 0:00:04]} Nc6 {[%emt 0:00:01]} 3. d4 {[%emt 0:00:03]} exd4 {[%emt 0:00:01]} 4. Nxd4 {[%emt 0:00:00]} Nf6 {[%emt 0:00:01]} 5. Nxc6 {[%emt 0:00:02]} bxc6 {[%emt 0:00:00]} 6. Bd3 {[%emt 0:00:01]} d5 {[%emt 0:00:03]} 7. exd5 {[%emt 0:00:01]} cxd5 {[%emt 0:00:08]} 8. O-O {[%emt 0:00:02]} Be7 {[%emt 0:00:07]} 9. c4 {[%emt 0:00:09]} O-O {[%emt 0:00:46]} 10. Nc3 {[%emt 0:00:06] now supersedes 10.cxd5. C45: Scotch Game.} Bg4 {[%emt 0:00:28]} (10... d4 $5 {[%cal Rd4c3]} 11. Ne4 Ng4 $11) 11. Qc2 {[%emt 0:00:35]} c6 {[%emt 0:00:03] [#]} 12. Bf4 $146 {[%emt 0:00:36] White has an edge.} ({Predecessor:} 12. Bg5 h6 13. Bh4 Rb8 14. b3 Re8 15. Bg3 Bd6 16. Rfe1 Bxg3 17. hxg3 Qd6 18. Na4 {1-0 Belenkaya,D (2297)-Vivas,F (1951) Titled Tuesday intern op 28th Apr blitz 2020 (4)}) 12... dxc4 {[%emt 0:00:44]} 13. Be2 {[%emt 0:00:03]} (13. Bxc4 $11 Re8 14. Rae1) 13... Qd4 {[%emt 0:01:10]} 14. Bg3 {[%emt 0:01:13]} Rad8 {[%emt 0:01:44]} 15. Rad1 {[%emt 0:01:19]} (15. Rfd1 $5 Qc5 $8 16. Bxg4 Nxg4 17. Ne4 $11) 15... Qc5 {[%emt 0:00:02]} 16. Bxg4 {[%emt 0:00:18]} Nxg4 {[%emt 0:00:01]} 17. Ne4 {[%emt 0:01:47]} Qb5 {[%emt 0:00:24]} 18. h3 {[%emt 0:00:37]} Nf6 {[%emt 0:00:04]} 19. Bd6 {[%emt 0:00:13]} Bxd6 {[%emt 0:04:47]} 20. Nxd6 {[%emt 0:00:00]} Qa6 {[%emt 0:00:31]} 21. Qxc4 {[%emt 0:00:09]} Qxc4 {[%emt 0:00:01]} 22. Nxc4 {[%emt 0:00:00]} Rd5 {[%emt 0:00:01]} 23. Rfe1 {[%emt 0:00:48]} Rb8 {[%emt 0:00:18]} 24. b3 {[%emt 0:00:04]} Kf8 {[%emt 0:00:14]} 25. Rc1 {[%emt 0:00:49]} Re8 {[%emt 0:00:10]} 26. f3 {[%emt 0:00:26]} g6 {[%emt 0:00:14]} 27. Kf2 {[%emt 0:00:30]} Rxe1 {[%emt 0:00:21]} 28. Rxe1 $11 {[%emt 0:00:02][%mdl 4096] Endgame KRN-KRN} Nd7 {[%emt 0:00:11]} 29. Re2 {[%emt 0:00:34]} Nc5 {[%emt 0:00:03]} 30. Ke3 {[%emt 0:00:09]} Rd3+ {[%emt 0:00:10]} 31. Kf2 {[%emt 0:00:04]} Rd5 {[%emt 0:00:03]} 32. h4 {[%emt 0:00:29]} Nd3+ {[%emt 0:00:16]} 33. Ke3 {[%emt 0:00:01]} Nb4 {[%emt 0:01:04]} 34. g4 {[%emt 0:00:45]} h5 {[%emt 0:00:18]} 35. a3 {[%emt 0:00:07]} Na6 {[%emt 0:00:10]} 36. Rd2 {[%emt 0:00:08]} Rxd2 {[%emt 0:00:15]} (36... Nc5 $11) 37. Nxd2 {[%emt 0:00:11]} hxg4 {[%emt 0:00:37]} ({Better is} 37... Nc7 $1 $14) 38. fxg4 {[%emt 0:00:00] KN-KN} Nc7 {[%emt 0:00:13]} (38... Nc5 $16) 39. Kd4 $2 {[%emt 0:00:15]} ({White should play} 39. Nf3 $18) 39... Nb5+ $1 {[%emt 0:00:08] The position is equal.} 40. Kc5 {[%emt 0:00:01] [#] Threatens to win with a4.} Nxa3 {[%emt 0:00:01]} 41. Kxc6 {[%emt 0:00:00]} Nc2 {[%emt 0:00:09]} 42. Kb7 {[%emt 0:00:28]} Ke7 {[%emt 0:00:21]} 43. Kxa7 {[%emt 0:00:02]} Ke6 {[%emt 0:00:01]} 44. g5 {[%emt 0:01:29]} f6 {[%emt 0:00:12]} 45. gxf6 {[%emt 0:01:05]} Kxf6 {[%emt 0:00:00]} 46. Kb7 {[%emt 0:00:45]} Kf5 {[%emt 0:00:06]} 47. Nc4 {[%emt 0:00:01]} Kg4 {[%emt 0:00:16]} 48. Ne5+ {[%emt 0:00:01]} Kxh4 {[%emt 0:00:01]} 49. Nxg6+ {[%emt 0:00:01]} Kg5 {[%emt 0:00:00]} 50. Nf8 {[%emt 0:00:05]} Kf5 {[%emt 0:00:05]} 51. Kb6 {[%emt 0:00:02]} Nd4 {[%emt 0:00:03]} 52. b4 {[%emt 0:00:01]} Nc2 {[%emt 0:00:00]} 53. b5 {[%emt 0:00:00] [#] White threatens Kc5 and mate.} Na3 {[%emt 0:00:01]} 54. Kc5 {[%emt 0:00:00]} Nxb5 $1 {[%emt 0:00:00] Weighted Error Value: White=0.12 (very precise) /Black=0.09 (flawless)} 1/2-1/2

[Event "ChessKid Cup Div-III 2023"]
[Site "Online"]
[Date "2023.05.22"]
[Round "2.1"]
[White "Pichot, Alan"]
[Black "Tari, Aryan"]
[Result "1/2-1/2"]
[ECO "C65"]
[WhiteElo "2638"]
[BlackElo "2642"]
[Annotator "TA"]
[PlyCount "70"]
[EventDate "2023.05.21"]
[EventType "k.o."]
[EventCountry "NET"]
[SourceTitle "playchess.com"]
[Source "ChessBase"]
[SourceQuality "1"]
[TimeControl "900+3"]

{[%evp 9,70,10,14,10,22,21,14,16,25,20,25,27,27,17,21,17,10,0,0,0,32,22,36,24,36,30,40,13,41,44,28,31,35,0,0,0,0,0,12,0,7,0,0,0,0,0,0,0,0,0,0,0,0,0,0,0,0,0,0,0,0,0,0]} 1. e4 {[%emt 0:00:04]} e5 {[%emt 0:00:17]} 2. Nf3 {[%emt 0:00:05]} Nc6 {[%emt 0:00:01]} 3. Bb5 {[%emt 0:00:02]} Nf6 {[%emt 0:00:31]} 4. d3 {[%emt 0:00:17]} Bc5 {[%emt 0:00:05]} 5. c3 {[%emt 0:00:50]} O-O {[%emt 0:00:03]} 6. O-O {[%emt 0:00:05] C65: Ruy Lopez: Berlin Defence (3...Nf6), unusual lines and 4 0-0 Bc5.} d5 {[%emt 0:00:03] now supersedes 6...d6.} 7. exd5 {[%emt 0:00:06]} Qxd5 {[%emt 0:00:03][%cal Oc5f2]} 8. Bc4 {[%emt 0:00:02]} Qd8 {[%emt 0:00:03]} 9. Nbd2 {[%emt 0:00:05]} h6 {[%emt 0:00:13]} 10. b4 {[%emt 0:00:17]} Bd6 {[%emt 0:00:03]} 11. h3 {[%emt 0:00:23] [#]} Re8 $146 {[%emt 0:00:09]} ({Predecessor:} 11... Bf5 12. Qe2 a6 13. a4 Re8 14. Ne4 Be6 15. Rb1 Nxe4 16. dxe4 Qf6 17. Bxe6 Qxe6 {1-0 Bosiocic,M (2619)-Michalik,P (2594) BL2-Sued 1920 2019 (5.1)}) 12. Qc2 {[%emt 0:00:18]} Bf5 {[%emt 0:01:00]} 13. Ne4 {[%emt 0:00:06]} Nxe4 {[%emt 0:00:25]} 14. dxe4 {[%emt 0:00:03]} Be6 {[%emt 0:00:00]} 15. Bxe6 {[%emt 0:00:12]} Rxe6 {[%emt 0:00:03]} 16. Be3 {[%emt 0:00:01]} Qe8 {[%emt 0:02:34]} 17. a4 {[%emt 0:00:10]} Bf8 {[%emt 0:01:04]} 18. Nd2 {[%emt 0:01:00][%cal Bf3d2,Bd2c4,Bc4a5][%mdl 32]} Nb8 {[%emt 0:00:46][%cal Bc6b8,Bb8d7,Bd7f6][%mdl 32]} 19. Nc4 {[%emt 0:02:20]} Nd7 {[%emt 0:00:44]} 20. Rfd1 {[%emt 0:00:08]} a6 {[%emt 0:01:30]} 21. Na5 {[%emt 0:01:06]} b6 {[%emt 0:00:33] The position is equal.} 22. Nb3 {[%emt 0:00:03]} Nf6 {[%emt 0:00:21]} 23. f3 {[%emt 0:00:46]} Rc6 {[%emt 0:00:35]} 24. b5 {[%emt 0:01:16]} Rd6 {[%emt 0:00:02]} 25. c4 {[%emt 0:00:17]} Rxd1+ {[%emt 0:00:25]} 26. Rxd1 {[%emt 0:00:18]} axb5 {[%emt 0:00:08]} 27. axb5 {[%emt 0:00:02]} Ra3 {[%emt 0:00:43]} 28. Ra1 {[%emt 0:01:24]} Rxa1+ {[%emt 0:00:23]} 29. Nxa1 {[%emt 0:00:00]} Nd7 {[%emt 0:00:36]} 30. Nb3 {[%emt 0:00:05]} Qa8 {[%emt 0:00:11]} 31. Qd3 {[%emt 0:00:11]} Bd6 {[%emt 0:00:20]} 32. Kh2 {[%emt 0:01:11]} Qa3 {[%emt 0:00:22]} 33. Qc2 {[%emt 0:00:29]} Nc5 {[%emt 0:00:26]} 34. Bxc5 {[%emt 0:00:10]} Bxc5 {[%emt 0:00:01]} 35. Nxc5 {[%emt 0:00:07]} Qxc5 {[%emt 0:00:01] Weighted Error Value: White=0.05 (flawless) /Black=0.04 (flawless)} 1/2-1/2

[Event "ChessKid Cup Div-III 2023"]
[Site "Online"]
[Date "2023.05.22"]
[Round "2.1"]
[White "Bok, Benjamin"]
[Black "Lazavik, Denis"]
[Result "1/2-1/2"]
[ECO "A14"]
[WhiteElo "2607"]
[BlackElo "2544"]
[Annotator "TA"]
[PlyCount "78"]
[EventDate "2023.05.21"]
[EventType "k.o."]
[EventCountry "NET"]
[SourceTitle "playchess.com"]
[Source "ChessBase"]
[SourceQuality "1"]
[TimeControl "900+3"]

{[%evp 18,78,15,10,18,15,13,12,9,11,13,0,0,0,0,2,5,5,4,5,5,4,6,6,4,0,0,0,0,0,0,0,0,0,0,0,0,0,0,0,0,0,0,0,0,0,0,0,0,0,0,0,0,0,0,0,0,0,0,0,0,0,0]} 1. c4 {[%emt 0:00:05]} Nf6 {[%emt 0:00:06]} 2. Nf3 {[%emt 0:00:02]} e6 {[%emt 0:00:02]} 3. g3 {[%emt 0:00:01]} d5 {[%emt 0:00:01]} 4. Bg2 {[%emt 0:00:00]} Be7 {[%emt 0:00:02]} 5. O-O {[%emt 0:00:04]} O-O {[%emt 0:00:00]} 6. b3 {[%emt 0:00:45]} c5 {[%emt 0:00:04]} 7. cxd5 {[%emt 0:00:05]} Nxd5 {[%emt 0:00:01]} 8. Bb2 {[%emt 0:00:09]} Nc6 {[%emt 0:00:03]} 9. Nc3 {[%emt 0:00:11] 9.d4 gains popularity.} Bf6 {[%emt 0:00:07]} 10. Qc2 {[%emt 0:00:09] The position is equal.} b6 {[%emt 0:00:08] A14: English Opening: 1...e6 with b3 by White.} 11. Nxd5 {[%emt 0:00:34]} Bxb2 {[%emt 0:00:19]} 12. Qxb2 {[%emt 0:00:02] [#] aiming for Nf4.} exd5 {[%emt 0:00:01]} 13. d4 {[%emt 0:00:57]} Qf6 {[%emt 0:00:04]} 14. Qd2 {[%emt 0:00:36]} cxd4 {[%emt 0:00:14]} 15. Rfd1 {[%emt 0:00:05][%cal Rf3d4]} Bg4 {[%emt 0:00:25]} 16. Nxd4 {[%emt 0:00:55]} Nxd4 {[%emt 0:00:02]} 17. Qxd4 {[%emt 0:00:00]} Qxd4 {[%emt 0:00:02]} 18. Rxd4 {[%emt 0:00:00]} Bxe2 {[%emt 0:00:01]} 19. Re1 {[%emt 0:01:26]} Rae8 {[%emt 0:01:59] [#]} 20. h4 $146 {[%emt 0:02:49]} ({Predecessor:} 20. Bxd5 Bb5 21. Red1 Re7 22. a4 Bd7 23. Kg2 g6 24. h4 h5 25. R1d2 Kg7 {½-½ Horvath,G (2480)-Almasi,I (2415) HUN-chT 9798 1997}) 20... g6 {[%emt 0:03:31]} 21. Rxd5 {[%emt 0:00:21]} Bg4 {[%emt 0:00:05]} 22. Rde5 {[%emt 0:00:26]} Rxe5 {[%emt 0:00:20]} 23. Rxe5 $11 {[%emt 0:00:00][%mdl 4096] Endgame KRB-KRB} Rd8 {[%emt 0:00:17]} 24. Rd5 {[%emt 0:00:34]} Rc8 {[%emt 0:00:15]} 25. Rd2 {[%emt 0:00:33]} Be6 {[%emt 0:00:39]} 26. Kf1 {[%emt 0:00:35]} Kf8 {[%emt 0:00:04]} 27. Ke2 {[%emt 0:00:03]} Ke7 {[%emt 0:00:06]} 28. Ke3 {[%emt 0:01:11]} Rc5 {[%emt 0:00:21]} 29. Be4 {[%emt 0:00:56]} h6 {[%emt 0:00:35]} 30. Rc2 {[%emt 0:00:14]} Kd6 {[%emt 0:00:08]} (30... Re5 $5 31. f3 $8 f5 $11 {[%mdl 64] Pin}) 31. f4 {[%emt 0:01:20]} Rxc2 {[%emt 0:04:25]} 32. Bxc2 {[%emt 0:00:00]} Bf5 {[%emt 0:00:19]} 33. Bxf5 {[%emt 0:01:15]} gxf5 {[%emt 0:00:01] KP-KP} 34. Kd4 {[%emt 0:00:01]} h5 {[%emt 0:00:10]} 35. a4 {[%emt 0:00:10]} a6 {[%emt 0:00:07]} 36. Kc4 {[%emt 0:00:06]} Kc6 {[%emt 0:00:01]} 37. Kd4 {[%emt 0:00:10]} Kd6 {[%emt 0:00:16]} 38. Kc4 {[%emt 0:00:02]} Kc6 {[%emt 0:00:03]} 39. Kd4 {[%emt 0:00:00]} Kd6 {[%emt 0:00:01] An interesting draw.   Weighted Error Value: White=0.01 (flawless) /Black=0.01 (flawless)} 1/2-1/2

[Event "ChessKid Cup Div-III 2023"]
[Site "Online"]
[Date "2023.05.22"]
[Round "2.1"]
[White "Harshavardhan G B"]
[Black "Bernadskiy, Vitaliy"]
[Result "0-1"]
[ECO "B90"]
[WhiteElo "2408"]
[BlackElo "2592"]
[Annotator "TA"]
[PlyCount "110"]
[EventDate "2023.05.21"]
[EventType "k.o."]
[EventCountry "NET"]
[SourceTitle "playchess.com"]
[Source "ChessBase"]
[SourceQuality "1"]
[TimeControl "900+3"]

{[%evp 13,110,30,26,4,16,0,26,24,35,8,69,0,0,0,0,-4,-13,-124,-125,-122,-124,-150,-133,-120,-106,-158,-158,-159,-148,-150,-139,-212,-150,-200,-214,-216,-164,-207,-194,-291,-296,-435,-431,-519,-519,-629,-619,-625,-609,-650,-606,-652,-648,-559,-605,-666,-662,-805,-759,-925,-859,-1104,-791,-2641,-2433,-1945,-1719,-1662,-1590,-1456,-1389,-12837,-12837,-12839,-12840,-12840,-12841,-12842,-12842,-12843,-12843,-12846,-12847,-12847,-12847,-12848,-12848,-12849,-12847,-12850,-12850,-12850,-27999,-27999,-27999,-27999,-27999,-27999,-27999]} 1. e4 {[%emt 0:00:09]} c5 {[%emt 0:00:09]} 2. Nf3 {[%emt 0:00:03]} d6 {[%emt 0:00:02]} 3. d4 {[%emt 0:00:07]} cxd4 {[%emt 0:00:00]} 4. Nxd4 {[%emt 0:00:01]} Nf6 {[%emt 0:00:01]} 5. Nc3 {[%emt 0:00:01]} a6 {[%emt 0:00:16]} 6. Be3 {[%emt 0:00:03]} e5 {[%emt 0:00:03]} 7. Nb3 {[%emt 0:00:02]} Be7 {[%emt 0:00:20]} 8. h3 {[%emt 0:00:03] B90: Sicilian Najdorf: Unusual White 6th moves, 6 Be3 Ng4 and 6 Be3 e5.} Be6 {[%emt 0:00:04]} 9. g4 {[%emt 0:00:06][%cal Bg2g4,Bg4g5][%mdl 32]} O-O {[%emt 0:00:13]} (9... d5 $5 {[%cal Rd5d4]}) 10. g5 {[%emt 0:01:28] White has an edge.} Nfd7 {[%emt 0:00:09]} 11. Qd2 {[%emt 0:00:02] has lost popularity (11.h4).} Nb6 $5 {[%emt 0:00:21][%mdl 4] [#] Exploring less charted territory.} (11... a5 $11) 12. Nd5 $146 {[%emt 0:00:35]} (12. O-O-O $14) ({Predecessor:} 12. O-O-O a5 13. Kb1 Nc4 14. Bxc4 Bxc4 15. Nc1 Nd7 16. h4 b5 17. N1e2 b4 18. Nd5 Bxd5 19. Qxd5 {1-0 Yemelin,V (2567)-Arsovic,G (2422) Skopje Karposh op 2012 (7)}) 12... Nxd5 $11 {[%emt 0:00:15]} 13. exd5 {[%emt 0:00:03]} Bf5 {[%emt 0:00:00]} 14. O-O-O {[%emt 0:00:51]} a5 {[%emt 0:00:17][%cal Ba6a5,Ba5a4][%mdl 32]} 15. Bd3 {[%emt 0:00:27] Dodges Na6} (15. Kb1 $11 {remains equal.}) 15... Bxd3 $17 {[%emt 0:00:26] Black keeps a firm grip on the game.} 16. Qxd3 {[%emt 0:00:02]} Bxg5 {[%emt 0:00:04]} 17. Kb1 {[%emt 0:00:12][%cal Of2f4]} a4 {[%emt 0:00:50]} 18. Nd2 {[%emt 0:00:04]} Nd7 {[%emt 0:00:10]} 19. Rhg1 {[%emt 0:00:13]} (19. Bxg5 $142 Qxg5 20. Rhg1) 19... Bxe3 {[%emt 0:00:15]} 20. Qxe3 {[%emt 0:00:02]} f5 {[%emt 0:00:10] Repels Ne4} 21. Nc4 {[%emt 0:00:56]} Qf6 {[%emt 0:00:03]} 22. f4 {[%emt 0:00:34]} (22. Nb6 $17 Nxb6 23. Qxb6) 22... Rfc8 {[%emt 0:00:31]} 23. fxe5 {[%emt 0:00:26]} (23. Na3 $17) 23... dxe5 $19 {[%emt 0:00:15][%cal Bd6e5,Be5e4,Be4e3][%mdl 32]} ({Inferior is} 23... Nxe5 24. Nb6 $15) 24. Na3 {[%emt 0:00:02]} e4 {[%emt 0:00:18]} 25. h4 {[%emt 0:01:32]} Ra6 {[%emt 0:00:18]} 26. h5 {[%emt 0:01:17]} (26. Rd4 $142) 26... Rb6 {[%emt 0:00:07][%csl Gb6][%cal Rf6b2]} 27. Qd4 {[%emt 0:00:03] [#]} (27. Rd4 $142) 27... e3 $1 {[%emt 0:00:28][%mdl 512]} 28. Qxf6 {[%emt 0:00:52]} (28. Rge1 f4) 28... Rxf6 {[%emt 0:00:06]} 29. Nb5 {[%emt 0:01:12]} f4 {[%emt 0:00:08]} 30. Rde1 {[%emt 0:00:19]} Re8 {[%emt 0:00:54]} 31. Nc7 {[%emt 0:01:57]} Re5 {[%emt 0:00:02]} 32. Ne6 {[%emt 0:00:19]} g6 {[%emt 0:00:01] ...f3 would be deadly.} ({Don't play} 32... Rxd5 33. Rxg7+ Kh8 34. Reg1 $18) 33. hxg6 {[%emt 0:00:25]} hxg6 {[%emt 0:00:00] Strongly threatening ...f3.} (33... Rxd5 $2 {too greedy.} 34. gxh7+ Kxh7 35. c4 $19) 34. Nxf4 {[%emt 0:00:10]} Rxf4 {[%emt 0:00:00]} 35. Rxg6+ {[%emt 0:00:01]} Kf7 {[%emt 0:00:01]} 36. Rg3 {[%emt 0:00:09]} e2 {[%emt 0:00:05] ( -> ...Rf1)} 37. Kc1 {[%emt 0:00:03]} Nf6 {[%emt 0:00:16][%cal Of4f1] ...Rf1! is the strong threat.} 38. Rg2 {[%emt 0:01:18]} Rf1 {[%emt 0:00:14]} 39. Kd2 {[%emt 0:00:02]} Ne4+ {[%emt 0:00:02]} 40. Kxe2 {[%emt 0:00:00]} Ng3+ {[%emt 0:00:03][%mdl 64] [#] Discovered Attack (Double check), Deflection} 41. Kd3 {[%emt 0:00:02]} Rfxe1 {[%emt 0:00:19]} 42. Rxg3 {[%emt 0:00:01]} Rxd5+ {[%emt 0:00:06]} 43. Kc4 {[%emt 0:00:02]} Rd2 {[%emt 0:00:03]} 44. Rc3 {[%emt 0:00:02]} Ree2 {[%emt 0:00:04]} 45. Kb4 {[%emt 0:00:01]} Rxc2 {[%emt 0:00:01]} 46. Rf3+ {[%emt 0:00:01]} Ke6 {[%emt 0:00:01]} 47. Kxa4 {[%emt 0:00:01]} Rxb2 {[%emt 0:00:01]} 48. a3 {[%emt 0:00:00]} Re4+ {[%emt 0:00:09]} 49. Ka5 {[%emt 0:00:01]} Re5+ {[%emt 0:00:02]} 50. Ka4 {[%emt 0:00:01]} b5+ {[%emt 0:00:01]} 51. Ka5 {[%emt 0:00:01]} b4+ {[%emt 0:00:00]} 52. Ka4 {[%emt 0:00:03]} bxa3 {[%emt 0:00:04]} 53. Kxa3 {[%emt 0:00:06] Black mates.} Rb8 {[%emt 0:00:02][%cal Re5a5]} 54. Ka4 {[%emt 0:00:00]} Re1 {[%emt 0:00:04]} 55. Ra3 {[%emt 0:00:04]} Ra8+ {[%emt 0:00:01] Weighted Error Value: White=0.88/Black=0.11 (very precise)} 0-1

[Event "ChessKid Cup Div-III 2023"]
[Site "Online"]
[Date "2023.05.22"]
[Round "2.2"]
[White "Yu, Yangyi"]
[Black "Harikrishna, Pentala"]
[Result "1/2-1/2"]
[ECO "C54"]
[WhiteElo "2729"]
[BlackElo "2704"]
[Annotator "TA"]
[PlyCount "107"]
[EventDate "2023.05.21"]
[EventType "k.o."]
[EventCountry "NET"]
[SourceTitle "playchess.com"]
[Source "ChessBase"]
[SourceQuality "1"]
[TimeControl "900+3"]

{[%evp 13,107,17,19,9,22,13,27,6,34,21,27,24,29,27,52,21,43,16,18,25,17,0,10,5,21,-21,-21,-25,-24,-25,-27,-50,-54,-44,-44,-50,-56,-53,-44,-56,-48,-54,-65,-53,-63,-58,-64,-67,0,-68,-68,-64,-57,-65,-63,-56,-64,-72,-70,-60,-69,-65,-53,-129,-131,-140,-135,-139,-146,-179,-140,-128,-65,-63,-63,-77,-63,-150,-148,-145,-35,-133,-85,-149,-140,-155,-52,-30,-61,-39,0,0,0,-45,0,0]} 1. e4 {[%emt 0:00:03]} e5 {[%emt 0:00:05]} 2. Nf3 {[%emt 0:00:02]} Nc6 {[%emt 0:00:01]} 3. Bc4 {[%emt 0:00:00]} Bc5 {[%emt 0:00:01]} 4. d3 {[%emt 0:00:01]} Nf6 {[%emt 0:00:03]} 5. Bg5 {[%emt 0:00:02]} h6 {[%emt 0:00:12]} 6. Bh4 {[%emt 0:00:04]} d6 {[%emt 0:00:03]} 7. c3 {[%emt 0:00:13] Nowadays more popular than 7.h3.} a6 {[%emt 0:00:03]} 8. a4 {[%emt 0:00:14] C54: Giuoco Piano: 4 c3 Nf6, main lines with 5 d4 and 5 d3.} Ba7 {[%emt 0:00:14]} 9. Nbd2 {[%emt 0:00:02]} O-O {[%emt 0:01:15]} (9... g5 $5 {[%cal Rg5h4]} 10. Bg3 O-O $11) 10. O-O {[%emt 0:00:25] White has an edge.} Re8 {[%emt 0:00:17]} (10... g5 {is more complex.} 11. Bg3 g4 12. Bh4 gxf3 13. Qxf3 Kg7) 11. b4 {[%emt 0:01:12]} Be6 {[%emt 0:00:09]} 12. Re1 {[%emt 0:00:07]} Nb8 {[%emt 0:00:35][%cal Bc6b8,Bb8d7,Bd7b6,Bb6c4,Bc4d2][%mdl 32]} 13. d4 {[%emt 0:00:49]} Nbd7 {[%emt 0:00:10] [#]} 14. Qb3 $146 {[%emt 0:00:09]} ({Predecessor:} 14. d5 Bg4 15. h3 Bh5 16. g4 Bg6 17. Bg3 Nf8 18. Nh4 Bh7 19. Nf5 Ng6 20. Qf3 {½-½ Cheparinov,I (2688)-Melkumyan,H (2640) TUR-chT Izmir 2016 (4.1)}) 14... Qe7 {[%emt 0:01:30]} 15. Rad1 {[%emt 0:00:46]} (15. h3 $5 {[%cal Rd4d5]}) 15... b5 {[%emt 0:00:27]} 16. Bxe6 {[%emt 0:00:53]} Qxe6 {[%emt 0:00:02]} 17. Qc2 {[%emt 0:00:01]} Nh5 {[%emt 0:00:20]} 18. Nf1 {[%emt 0:00:17]} Nb6 {[%emt 0:01:20]} 19. axb5 {[%emt 0:02:18]} axb5 {[%emt 0:00:04]} 20. Ne3 {[%emt 0:00:08]} Nc4 {[%emt 0:01:55]} 21. Nd5 {[%emt 0:00:03]} Bb8 {[%emt 0:01:18]} 22. Nd2 {[%emt 0:00:38]} Nxd2 {[%emt 0:00:02]} 23. Qxd2 {[%emt 0:01:24]} c6 {[%emt 0:00:11]} 24. Ne3 {[%emt 0:00:39]} Ra2 $1 {[%emt 0:00:02]} 25. d5 {[%emt 0:00:15]} Rxd2 {[%emt 0:00:08]} 26. dxe6 {[%emt 0:00:01]} Rxd1 {[%emt 0:00:04]} 27. exf7+ {[%emt 0:00:01]} Kxf7 {[%emt 0:00:01]} 28. Rxd1 {[%emt 0:00:00]} g5 {[%emt 0:00:36]} 29. Bg3 {[%emt 0:00:07]} Nf6 $1 {[%emt 0:00:01]} 30. f3 {[%emt 0:00:11]} Ba7 {[%emt 0:00:02]} (30... d5 $1 $15) 31. Bf2 {[%emt 0:00:06]} (31. Kf2 $1 $11) 31... Bxe3 $1 $15 {[%emt 0:00:01]} 32. Bxe3 {[%emt 0:00:00][%mdl 4096] Endgame KRB-KRN} d5 {[%emt 0:00:02]} 33. exd5 {[%emt 0:00:28]} Nxd5 {[%emt 0:00:01]} 34. Bc5 {[%emt 0:00:58]} Ra8 {[%emt 0:00:44]} 35. Re1 {[%emt 0:01:59]} Kf6 $1 {[%emt 0:00:16]} ({But not} 35... Nxc3 $6 36. Rxe5 Ra1+ 37. Kf2 $11) 36. Bd6 {[%emt 0:00:02]} Re8 {[%emt 0:00:01]} 37. Rc1 {[%emt 0:00:46]} Nf4 {[%emt 0:00:02] White must now prevent ...Ne2+.} (37... Rd8 $5 {[%cal Rd8d6]} 38. Bc5 Nf4 $15) 38. Rd1 {[%emt 0:00:21]} (38. Re1 $15) 38... Ne2+ $17 {[%emt 0:00:47]} 39. Kf2 {[%emt 0:00:21]} Nxc3 {[%emt 0:00:01]} 40. Rc1 {[%emt 0:00:01] [#]} Nd5 {[%emt 0:00:01]} 41. Ra1 {[%emt 0:00:26]} (41. Rxc6 $2 {is the wrong capture.} Re6 42. g3 Kg6 $19) 41... Rd8 {[%emt 0:02:15]} 42. Bc5 {[%emt 0:00:04]} Nf4 {[%emt 0:00:04]} (42... h5 $17 43. Ra6 Rc8) 43. Ra6 $1 $15 {[%emt 0:00:19]} Rc8 {[%emt 0:00:41]} 44. g3 $1 {[%emt 0:00:08]} Nd5 {[%emt 0:00:01]} 45. Ke2 {[%emt 0:00:05] [#]} (45. h3 $15) 45... h5 $1 $17 {[%emt 0:00:21]} 46. Ra7 {[%emt 0:00:05]} Nc7 {[%emt 0:00:08]} (46... g4 $17 47. Rh7 Kg6) 47. Kd3 {[%emt 0:00:03]} ({White should play} 47. Bd6 $15 Nd5 48. Bc5) 47... Ke6 {[%emt 0:00:11]} (47... Kf5 $142 48. Ke3 Nd5+ 49. Ke2 g4) 48. Ke4 {[%emt 0:00:02]} (48. h3 $142) 48... Nd5 {[%emt 0:00:14]} 49. h4 {[%emt 0:00:06]} Rg8 {[%emt 0:00:13]} (49... gxh4 $17 50. gxh4 Rd8) 50. Ra6 $15 {[%emt 0:00:03]} Nf6+ {[%emt 0:00:05]} 51. Ke3 $1 {[%emt 0:00:03]} Nd5+ {[%emt 0:00:01]} 52. Ke4 {[%emt 0:00:01]} Nf6+ {[%emt 0:00:03]} 53. Ke3 $1 {[%emt 0:00:01]} Nd5+ {[%emt 0:00:11]} 54. Ke4 {[%emt 0:00:01] Weighted Error Value: White=0.16 (very precise) /Black=0.15 (very precise)} 1/2-1/2